[Event "Late-Titled-Tuesday-Blitz-September-05-2023"]
[Site "Chess.com"]
[Date "2023.09.05"]
[Round "1"]
[White "Mops_2004"]
[Black "KarateBaby"]
[Result "1-0"]
[WhiteElo "2834"]
[BlackElo "2438"]
[TimeControl "180+1"]
[EndTime "14:07:20 PDT"]
[Termination "Mops_2004 won by resignation"]

1. g3 {[%clk 0:03:00.9]} 1... g6 {[%clk 0:02:54.7]} 2. Bg2 {[%clk 0:03:00.5]}
2... Bg7 {[%clk 0:02:55.6]} 3. d4 {[%clk 0:03:00.7]} 3... Nf6 {[%clk 0:02:56.1]}
4. Nf3 {[%clk 0:03:00.8]} 4... O-O {[%clk 0:02:56.8]} 5. O-O {[%clk 0:03:01.4]}
5... d6 {[%clk 0:02:57.1]} 6. Re1 {[%clk 0:03:01.3]} 6... Nc6 {[%clk 0:02:55.9]}
7. d5 {[%clk 0:03:00.7]} 7... Na5 {[%clk 0:02:54.7]} 8. e4 {[%clk 0:02:59.3]}
8... c6 {[%clk 0:02:54.6]} 9. Nc3 {[%clk 0:02:58.4]} 9... e6 {[%clk 0:02:54.1]}
10. dxe6 {[%clk 0:02:47.6]} 10... Bxe6 {[%clk 0:02:55]} 11. Nd4 {[%clk
0:02:43.4]} 11... Re8 {[%clk 0:02:43.6]} 12. Nxe6 {[%clk 0:02:42]} 12... Rxe6
{[%clk 0:02:44.5]} 13. Bf4 {[%clk 0:02:39.2]} 13... Nc4 {[%clk 0:02:42.1]} 14.
Rb1 {[%clk 0:02:26.6]} 14... Nh5 {[%clk 0:02:41]} 15. Bc1 {[%clk 0:02:25.8]}
15... Qa5 {[%clk 0:02:30.1]} 16. Qd3 {[%clk 0:02:22.6]} 16... Ne5 {[%clk
0:02:28.6]} 17. Qf1 {[%clk 0:02:21.7]} 17... Rae8 {[%clk 0:02:19.2]} 18. Bd2
{[%clk 0:02:21]} 18... b5 {[%clk 0:02:15.3]} 19. b3 {[%clk 0:01:36.4]} 19... Nd7
{[%clk 0:01:59]} 20. b4 {[%clk 0:01:24.3]} 20... Qb6 {[%clk 0:01:49.8]} 21. a4
{[%clk 0:01:23.1]} 21... a6 {[%clk 0:01:49.4]} 22. Bh3 {[%clk 0:01:08.3]} 22...
R6e7 {[%clk 0:01:45.8]} 23. Bxd7 {[%clk 0:01:01.1]} 23... Rxd7 {[%clk
0:01:46.7]} 24. Qd3 {[%clk 0:00:59.8]} 24... Nf6 {[%clk 0:01:33.6]} 25. Kg2
{[%clk 0:00:56.2]} 25... h5 {[%clk 0:01:18.1]} 26. h3 {[%clk 0:00:52]} 26... Qc7
{[%clk 0:01:14.3]} 27. Bf4 {[%clk 0:00:45.4]} 27... Kh7 {[%clk 0:01:11.4]} 28.
Rbd1 {[%clk 0:00:43.7]} 28... Red8 {[%clk 0:01:10.4]} 29. axb5 {[%clk
0:00:43.8]} 29... axb5 {[%clk 0:01:10.4]} 30. Bg5 {[%clk 0:00:39.6]} 30... Re8
{[%clk 0:01:06.9]} 31. Qf3 {[%clk 0:00:38.6]} 31... Ng8 {[%clk 0:01:05.7]} 32.
Rd3 {[%clk 0:00:37.4]} 32... d5 {[%clk 0:01:02.7]} 33. Bf4 {[%clk 0:00:24.2]}
33... Qd8 {[%clk 0:00:55.7]} 34. e5 {[%clk 0:00:18.3]} 34... Ne7 {[%clk
0:00:50.6]} 35. g4 {[%clk 0:00:17.9]} 35... hxg4 {[%clk 0:00:47.7]} 36. hxg4
{[%clk 0:00:18.8]} 36... Nc8 {[%clk 0:00:48.3]} 37. Rh1+ {[%clk 0:00:15.6]}
37... Kg8 {[%clk 0:00:48.2]} 38. Qh3 {[%clk 0:00:16.4]} 38... g5 {[%clk
0:00:39.8]} 39. Bg3 {[%clk 0:00:11.8]} 39... Ne7 {[%clk 0:00:39.9]} 40. Ne2
{[%clk 0:00:07.7]} 40... Ng6 {[%clk 0:00:39.8]} 41. Nd4 {[%clk 0:00:08.2]} 41...
Qc8 {[%clk 0:00:20.6]} 42. Qh7+ {[%clk 0:00:08.3]} 42... Kf8 {[%clk 0:00:20.6]}
43. e6 {[%clk 0:00:08.7]} 43... Rd6 {[%clk 0:00:17.2]} 44. Bxd6+ {[%clk
0:00:08]} 1-0

[Event "Late-Titled-Tuesday-Blitz-September-05-2023"]
[Site "Chess.com"]
[Date "2023.09.05"]
[Round "1"]
[White "realburq"]
[Black "RzayevB"]
[Result "0-1"]
[WhiteElo "2377"]
[BlackElo "2691"]
[TimeControl "180+1"]
[EndTime "14:07:24 PDT"]
[Termination "RzayevB won by resignation"]

1. Nf3 {[%clk 0:02:59.9]} 1... Nc6 {[%clk 0:02:59.4]} 2. b3 {[%clk 0:02:59.5]}
2... e5 {[%clk 0:02:58.7]} 3. d3 {[%clk 0:02:47.3]} 3... d5 {[%clk 0:02:55.8]}
4. Bb2 {[%clk 0:02:47]} 4... Bd6 {[%clk 0:02:56]} 5. g3 {[%clk 0:02:46.5]} 5...
Nf6 {[%clk 0:02:55.6]} 6. Bg2 {[%clk 0:02:46.7]} 6... O-O {[%clk 0:02:52.4]} 7.
O-O {[%clk 0:02:46.2]} 7... a5 {[%clk 0:02:52.8]} 8. c4 {[%clk 0:02:46]} 8... d4
{[%clk 0:02:47.6]} 9. Nbd2 {[%clk 0:02:42.3]} 9... a4 {[%clk 0:02:46.5]} 10. Rc1
{[%clk 0:02:36.1]} 10... a3 {[%clk 0:02:43.1]} 11. Ba1 {[%clk 0:02:35.8]} 11...
Nb4 {[%clk 0:02:43.8]} 12. c5 {[%clk 0:02:30.1]} 12... Be7 {[%clk 0:02:43.5]}
13. Nxe5 {[%clk 0:02:29.4]} 13... Nxa2 {[%clk 0:02:41.9]} 14. Rc4 {[%clk
0:02:27.1]} 14... Nc3 {[%clk 0:02:35.8]} 15. Rxc3 {[%clk 0:01:43.2]} 15... dxc3
{[%clk 0:02:36.7]} 16. Bxc3 {[%clk 0:01:43.7]} 16... Bxc5 {[%clk 0:02:30.6]} 17.
Ndc4 {[%clk 0:01:36.8]} 17... Bd4 {[%clk 0:02:23.2]} 18. Qa1 {[%clk 0:01:34.3]}
18... Bxc3 {[%clk 0:02:22.1]} 19. Qxc3 {[%clk 0:01:35.2]} 19... Nd5 {[%clk
0:02:18.7]} 20. Qd2 {[%clk 0:01:22.2]} 20... f6 {[%clk 0:02:01.5]} 21. Nf3
{[%clk 0:01:13]} 21... b5 {[%clk 0:01:57.9]} 22. Ne3 {[%clk 0:01:13.1]} 22...
Nxe3 {[%clk 0:01:56.7]} 23. fxe3 {[%clk 0:01:14]} 23... Bb7 {[%clk 0:01:45.5]}
24. b4 {[%clk 0:01:10.7]} 24... Bxf3 {[%clk 0:01:28.8]} 25. Bxf3 {[%clk
0:01:08.2]} 25... Ra4 {[%clk 0:01:29.4]} 26. Qa2+ {[%clk 0:01:00.7]} 26... Kh8
{[%clk 0:01:28.2]} 27. Rc1 {[%clk 0:01:01.3]} 27... Qe7 {[%clk 0:01:26.1]} 28.
Kf2 {[%clk 0:00:58.9]} 28... Re8 {[%clk 0:01:18.7]} 29. e4 {[%clk 0:00:50]}
29... Rxb4 {[%clk 0:01:03.9]} 30. Qxa3 {[%clk 0:00:45.5]} 30... Rxe4 {[%clk
0:01:04.3]} 31. Qxe7 {[%clk 0:00:36.7]} 31... R4xe7 {[%clk 0:01:03.1]} 32. e3
{[%clk 0:00:21.3]} 32... Rb8 {[%clk 0:00:45.1]} 33. Bd5 {[%clk 0:00:19.9]} 33...
g6 {[%clk 0:00:41.1]} 34. Kf3 {[%clk 0:00:19.6]} 34... f5 {[%clk 0:00:40.7]} 35.
d4 {[%clk 0:00:19.2]} 35... Kg7 {[%clk 0:00:37.3]} 36. Kf4 {[%clk 0:00:19.7]}
36... b4 {[%clk 0:00:36.3]} 37. Bb3 {[%clk 0:00:19]} 37... Rb6 {[%clk
0:00:34.2]} 38. h4 {[%clk 0:00:16.9]} 38... Kf6 {[%clk 0:00:34.4]} 39. Ra1
{[%clk 0:00:14.6]} 39... Rc6 {[%clk 0:00:29.8]} 40. Ra8 {[%clk 0:00:15.1]} 40...
Re4+ {[%clk 0:00:22]} 41. Kf3 {[%clk 0:00:14.7]} 41... Rc3 {[%clk 0:00:22.9]}
42. Rf8+ {[%clk 0:00:13.2]} 42... Kg7 {[%clk 0:00:20.6]} 43. Rf7+ {[%clk
0:00:13.5]} 43... Kh6 {[%clk 0:00:20.8]} 0-1

[Event "Late-Titled-Tuesday-Blitz-September-05-2023"]
[Site "Chess.com"]
[Date "2023.09.05"]
[Round "1"]
[White "rasmussvane"]
[Black "GMZaven"]
[Result "0-1"]
[WhiteElo "2949"]
[BlackElo "2844"]
[TimeControl "180+1"]
[EndTime "14:07:25 PDT"]
[Termination "GMZaven won by checkmate"]

1. Nf3 {[%clk 0:03:00.9]} 1... d5 {[%clk 0:02:55.9]} 2. g3 {[%clk 0:02:51.4]}
2... Nc6 {[%clk 0:02:55.5]} 3. d4 {[%clk 0:02:51.5]} 3... Bg4 {[%clk 0:02:54.6]}
4. Bg2 {[%clk 0:02:51.8]} 4... Qd7 {[%clk 0:02:54.6]} 5. h3 {[%clk 0:02:52]}
5... Bxf3 {[%clk 0:02:54.3]} 6. exf3 {[%clk 0:02:51.3]} 6... O-O-O {[%clk
0:02:52.5]} 7. f4 {[%clk 0:02:51]} 7... f5 {[%clk 0:02:51.1]} 8. c3 {[%clk
0:02:49.6]} 8... Nf6 {[%clk 0:02:50.6]} 9. Nd2 {[%clk 0:02:49.7]} 9... e6 {[%clk
0:02:16.2]} 10. O-O {[%clk 0:02:48.2]} 10... h6 {[%clk 0:02:15.7]} 11. Nf3
{[%clk 0:02:42.1]} 11... g6 {[%clk 0:02:15.1]} 12. b4 {[%clk 0:02:41]} 12... g5
{[%clk 0:02:14.8]} 13. fxg5 {[%clk 0:02:38.7]} 13... Ne4 {[%clk 0:02:14.9]} 14.
Qd3 {[%clk 0:02:15.3]} 14... hxg5 {[%clk 0:02:10.1]} 15. b5 {[%clk 0:02:14.4]}
15... Na5 {[%clk 0:02:08.3]} 16. Nxg5 {[%clk 0:02:03.8]} 16... Bh6 {[%clk
0:02:05.7]} 17. Nf3 {[%clk 0:02:00.6]} 17... Nc4 {[%clk 0:02:05]} 18. Ne5 {[%clk
0:01:53.4]} 18... Nxe5 {[%clk 0:02:04.2]} 19. dxe5 {[%clk 0:01:54.3]} 19... Bxc1
{[%clk 0:02:03.4]} 20. Raxc1 {[%clk 0:01:55.2]} 20... Qe7 {[%clk 0:02:03.6]} 21.
c4 {[%clk 0:01:47.5]} 21... d4 {[%clk 0:01:57.5]} 22. c5 {[%clk 0:01:40.5]}
22... Rd5 {[%clk 0:01:57.1]} 23. b6 {[%clk 0:01:27.4]} 23... axb6 {[%clk
0:01:51.4]} 24. cxb6 {[%clk 0:01:28.3]} 24... c6 {[%clk 0:01:36.2]} 25. Rc4
{[%clk 0:01:28.1]} 25... Rhd8 {[%clk 0:01:33.7]} 26. Rd1 {[%clk 0:01:20.7]}
26... Qg7 {[%clk 0:01:30]} 27. Qa3 {[%clk 0:01:14]} 27... Qxe5 {[%clk
0:01:29.6]} 28. Qa8+ {[%clk 0:01:05.8]} 28... Qb8 {[%clk 0:01:28.7]} 29. Rxc6+
{[%clk 0:01:05.7]} 29... Kd7 {[%clk 0:01:27.2]} 30. Qxb8 {[%clk 0:00:55.5]}
30... Rxb8 {[%clk 0:01:28.1]} 31. Rc7+ {[%clk 0:00:55.8]} 31... Kd6 {[%clk
0:01:28.1]} 32. g4 {[%clk 0:00:42.9]} 32... d3 {[%clk 0:01:22.5]} 33. f3 {[%clk
0:00:32]} 33... Nc5 {[%clk 0:01:21.2]} 34. g5 {[%clk 0:00:25.7]} 34... f4 {[%clk
0:01:20.2]} 35. h4 {[%clk 0:00:25.5]} 35... Rh8 {[%clk 0:01:09.9]} 36. g6 {[%clk
0:00:05.2]} 36... Rxh4 {[%clk 0:01:09.8]} 37. g7 {[%clk 0:00:05.8]} 37... Rg5
{[%clk 0:01:10]} 38. Kf2 {[%clk 0:00:04.7]} 38... Rh2 {[%clk 0:01:09.7]} 39. Rg1
{[%clk 0:00:05]} 39... d2 {[%clk 0:01:10.1]} 40. Rc8 {[%clk 0:00:02.7]} 40...
Rxg7 {[%clk 0:01:08.8]} 41. Rd8+ {[%clk 0:00:02.8]} 41... Nd7 {[%clk 0:01:09]}
42. Ke2 {[%clk 0:00:02]} 42... Rgxg2+ {[%clk 0:01:08.7]} 43. Rxg2 {[%clk
0:00:02.8]} 43... Rxg2+ {[%clk 0:01:09.6]} 44. Kd1 {[%clk 0:00:03.6]} 44... Rf2
{[%clk 0:01:09.7]} 45. a4 {[%clk 0:00:02.4]} 45... Rxf3 {[%clk 0:01:10.2]} 46.
a5 {[%clk 0:00:02.5]} 46... Ra3 {[%clk 0:01:10.8]} 47. a6 {[%clk 0:00:02.9]}
47... Rxa6 {[%clk 0:01:11.1]} 48. Rc8 {[%clk 0:00:02.8]} 48... Rxb6 {[%clk
0:01:11.3]} 49. Rc2 {[%clk 0:00:03.3]} 49... Ke5 {[%clk 0:01:09.9]} 50. Kxd2
{[%clk 0:00:03.5]} 50... Rd6+ {[%clk 0:01:09.4]} 51. Ke2 {[%clk 0:00:03.9]}
51... Nf6 {[%clk 0:01:09.5]} 52. Kf3 {[%clk 0:00:03.8]} 52... Rd3+ {[%clk
0:01:08.4]} 53. Kg2 {[%clk 0:00:04.3]} 53... f3+ {[%clk 0:01:08]} 54. Kh3 {[%clk
0:00:04.9]} 54... Ne4 {[%clk 0:01:06.6]} 55. Kh2 {[%clk 0:00:04.6]} 55... Kf4
{[%clk 0:01:06.6]} 56. Rb2 {[%clk 0:00:02.6]} 56... Rd2+ {[%clk 0:01:06.9]} 57.
Rxd2 {[%clk 0:00:02.4]} 57... Nxd2 {[%clk 0:01:07.8]} 58. Kh3 {[%clk 0:00:02.8]}
58... f2 {[%clk 0:01:06.8]} 59. Kh2 {[%clk 0:00:02.2]} 59... Kf3 {[%clk
0:01:06.5]} 60. Kh1 {[%clk 0:00:01.7]} 60... f1=Q+ {[%clk 0:01:06.7]} 61. Kh2
{[%clk 0:00:02.6]} 61... Qg2# {[%clk 0:01:07.1]} 0-1

[Event "Late-Titled-Tuesday-Blitz-September-05-2023"]
[Site "Chess.com"]
[Date "2023.09.05"]
[Round "1"]
[White "Durarbayli"]
[Black "vidavi"]
[Result "1-0"]
[WhiteElo "2863"]
[BlackElo "2445"]
[TimeControl "180+1"]
[EndTime "14:07:27 PDT"]
[Termination "Durarbayli won on time"]

1. e4 {[%clk 0:03:00.9]} 1... c5 {[%clk 0:02:58.7]} 2. Nf3 {[%clk 0:03:00.5]}
2... d6 {[%clk 0:02:58.6]} 3. d4 {[%clk 0:03:00.6]} 3... cxd4 {[%clk 0:02:59.1]}
4. Nxd4 {[%clk 0:03:01.5]} 4... Nf6 {[%clk 0:02:59.4]} 5. Nc3 {[%clk 0:03:02.2]}
5... a6 {[%clk 0:02:59.8]} 6. Be2 {[%clk 0:03:02.7]} 6... e5 {[%clk 0:03:00.2]}
7. Nb3 {[%clk 0:03:03.3]} 7... Be7 {[%clk 0:03:00.5]} 8. Be3 {[%clk 0:03:04]}
8... O-O {[%clk 0:03:00.9]} 9. g4 {[%clk 0:03:04.2]} 9... Nfd7 {[%clk
0:02:59.3]} 10. h4 {[%clk 0:03:01.8]} 10... b5 {[%clk 0:02:54]} 11. g5 {[%clk
0:03:01.4]} 11... Bb7 {[%clk 0:02:52.1]} 12. Qd2 {[%clk 0:02:51.3]} 12... Nc5
{[%clk 0:02:46.7]} 13. Nxc5 {[%clk 0:02:41.5]} 13... dxc5 {[%clk 0:02:46.5]} 14.
Nd5 {[%clk 0:02:42.4]} 14... Bxd5 {[%clk 0:01:58.1]} 15. exd5 {[%clk 0:02:40.9]}
15... Bd6 {[%clk 0:01:58.6]} 16. a4 {[%clk 0:02:33.3]} 16... Nd7 {[%clk
0:01:38.7]} 17. axb5 {[%clk 0:02:32.9]} 17... axb5 {[%clk 0:01:39.6]} 18. Rxa8
{[%clk 0:02:32.7]} 18... Qxa8 {[%clk 0:01:40.5]} 19. Bxb5 {[%clk 0:02:32.9]}
19... Nb6 {[%clk 0:01:35.3]} 20. c4 {[%clk 0:02:24.4]} 20... Qa1+ {[%clk
0:01:22.3]} 21. Qc1 {[%clk 0:02:24.3]} 21... Qa5+ {[%clk 0:01:00.4]} 22. Bd2
{[%clk 0:02:24.4]} 22... Qa2 {[%clk 0:00:59.7]} 23. Rh3 {[%clk 0:02:22.2]} 23...
Ra8 {[%clk 0:00:58.6]} 24. h5 {[%clk 0:02:17.3]} 24... e4 {[%clk 0:00:56.9]} 25.
g6 {[%clk 0:02:10.8]} 25... fxg6 {[%clk 0:00:50.1]} 26. hxg6 {[%clk 0:02:11.7]}
26... h6 {[%clk 0:00:50.6]} 27. Kf1 {[%clk 0:02:01.2]} 27... Be5 {[%clk
0:00:37.3]} 28. Bc3 {[%clk 0:01:37]} 28... Nxc4 {[%clk 0:00:37.1]} 29. Bc6
{[%clk 0:01:22]} 29... Qa1 {[%clk 0:00:35.8]} 30. Qxa1 {[%clk 0:01:20.1]} 30...
Rxa1+ {[%clk 0:00:36.7]} 31. Kg2 {[%clk 0:01:20.6]} 31... Rd1 {[%clk 0:00:32.3]}
32. Bd7 {[%clk 0:01:14.4]} 32... Kf8 {[%clk 0:00:30.8]} 33. Be6 {[%clk
0:01:11.7]} 33... Ke7 {[%clk 0:00:20.2]} 34. b3 {[%clk 0:00:53.4]} 34... Bxc3
{[%clk 0:00:18.8]} 35. bxc4 {[%clk 0:00:41.8]} 35... Bd4 {[%clk 0:00:16.3]} 36.
Rb3 {[%clk 0:00:37]} 36... Rd2 {[%clk 0:00:13.4]} 37. Rb7+ {[%clk 0:00:37.9]}
37... Kd8 {[%clk 0:00:12.8]} 38. d6 {[%clk 0:00:35.7]} 38... Rxf2+ {[%clk
0:00:11.8]} 39. Kg3 {[%clk 0:00:31]} 39... Rb2 {[%clk 0:00:11.2]} 40. Rd7+
{[%clk 0:00:26.8]} 40... Ke8 {[%clk 0:00:10.8]} 41. Kf4 {[%clk 0:00:25.3]} 41...
e3 {[%clk 0:00:10]} 42. Re7+ {[%clk 0:00:20.5]} 42... Kd8 {[%clk 0:00:07]} 43.
Rc7 {[%clk 0:00:16.6]} 43... Rb8 {[%clk 0:00:05.3]} 44. Rf7 {[%clk 0:00:16.7]}
1-0

[Event "Late-Titled-Tuesday-Blitz-September-05-2023"]
[Site "Chess.com"]
[Date "2023.09.05"]
[Round "1"]
[White "AradNazari"]
[Black "Quattroporte300"]
[Result "1-0"]
[WhiteElo "2709"]
[BlackElo "2399"]
[TimeControl "180+1"]
[EndTime "14:07:29 PDT"]
[Termination "AradNazari won by checkmate"]

1. e4 {[%clk 0:02:53.8]} 1... c5 {[%clk 0:02:59.8]} 2. Nf3 {[%clk 0:02:53.7]}
2... d6 {[%clk 0:02:59.7]} 3. Bb5+ {[%clk 0:02:47.8]} 3... Bd7 {[%clk
0:02:59.4]} 4. Bxd7+ {[%clk 0:02:48.2]} 4... Qxd7 {[%clk 0:02:59.8]} 5. O-O
{[%clk 0:02:48.8]} 5... Nc6 {[%clk 0:03:00.2]} 6. c3 {[%clk 0:02:49.1]} 6... Nf6
{[%clk 0:03:00.2]} 7. Re1 {[%clk 0:02:47.9]} 7... e6 {[%clk 0:02:55.9]} 8. d4
{[%clk 0:02:48.5]} 8... cxd4 {[%clk 0:02:56.1]} 9. cxd4 {[%clk 0:02:49]} 9...
Be7 {[%clk 0:02:56.1]} 10. Nc3 {[%clk 0:02:46.7]} 10... O-O {[%clk 0:02:55.2]}
11. Bg5 {[%clk 0:02:45.9]} 11... h6 {[%clk 0:02:52.2]} 12. Bxf6 {[%clk
0:02:45.4]} 12... Bxf6 {[%clk 0:02:52.1]} 13. d5 {[%clk 0:02:45.9]} 13... Ne5
{[%clk 0:02:49.3]} 14. Nd4 {[%clk 0:02:35.8]} 14... Rac8 {[%clk 0:02:45.8]} 15.
Qb3 {[%clk 0:02:29.4]} 15... Rfe8 {[%clk 0:02:41.1]} 16. Rad1 {[%clk 0:02:26.7]}
16... Nc4 {[%clk 0:02:29.9]} 17. dxe6 {[%clk 0:01:59]} 17... fxe6 {[%clk
0:02:28.9]} 18. Nde2 {[%clk 0:01:59.5]} 18... Qc6 {[%clk 0:02:23]} 19. Rd3
{[%clk 0:01:50.3]} 19... a6 {[%clk 0:02:19.7]} 20. Red1 {[%clk 0:01:48.4]} 20...
b5 {[%clk 0:02:17.6]} 21. a4 {[%clk 0:01:46.6]} 21... bxa4 {[%clk 0:01:55.1]}
22. Nxa4 {[%clk 0:01:47]} 22... Rb8 {[%clk 0:01:54.3]} 23. Qc2 {[%clk
0:01:45.6]} 23... Be7 {[%clk 0:01:33.6]} 24. Rc3 {[%clk 0:01:40.9]} 24... d5
{[%clk 0:01:17.7]} 25. exd5 {[%clk 0:01:41.1]} 25... exd5 {[%clk 0:01:17.6]} 26.
b3 {[%clk 0:01:40.2]} 26... Bf6 {[%clk 0:01:08.5]} 27. bxc4 {[%clk 0:01:39.1]}
27... dxc4 {[%clk 0:01:08.6]} 28. Rxc4 {[%clk 0:01:37.5]} 28... Qb5 {[%clk
0:00:59.9]} 29. Nd4 {[%clk 0:01:31.8]} 29... Qa5 {[%clk 0:00:54.4]} 30. g3
{[%clk 0:01:18.4]} 30... Rbd8 {[%clk 0:00:53]} 31. Nc5 {[%clk 0:01:05.1]} 31...
Re1+ {[%clk 0:00:46.1]} 32. Kg2 {[%clk 0:01:04.8]} 32... Rxd1 {[%clk 0:00:25.2]}
33. Qxd1 {[%clk 0:01:04.1]} 33... Rc8 {[%clk 0:00:18.1]} 34. Ndb3 {[%clk
0:01:00]} 34... Qa3 {[%clk 0:00:14.3]} 35. Qd5+ {[%clk 0:00:56.6]} 35... Kh8
{[%clk 0:00:13.9]} 36. Rf4 {[%clk 0:00:56.9]} 36... Rd8 {[%clk 0:00:11.5]} 37.
Qe6 {[%clk 0:00:54.2]} 37... Qb2 {[%clk 0:00:10]} 38. Qxa6 {[%clk 0:00:47.8]}
38... Qe5 {[%clk 0:00:07]} 39. Qe6 {[%clk 0:00:44.9]} 39... Qb8 {[%clk
0:00:06.3]} 40. Na5 {[%clk 0:00:36.5]} 40... Rd2 {[%clk 0:00:06.1]} 41. Nc6
{[%clk 0:00:35.3]} 41... Qa8 {[%clk 0:00:05.8]} 42. Ne4 {[%clk 0:00:32.6]} 42...
Rc2 {[%clk 0:00:05.4]} 43. Rxf6 {[%clk 0:00:30.6]} 43... gxf6 {[%clk 0:00:03.3]}
44. Qxf6+ {[%clk 0:00:31.2]} 44... Kh7 {[%clk 0:00:03.7]} 45. Qf5+ {[%clk
0:00:31.3]} 45... Kg8 {[%clk 0:00:03.9]} 46. Ne7+ {[%clk 0:00:31.3]} 46... Kg7
{[%clk 0:00:04.1]} 47. Qf6+ {[%clk 0:00:31.3]} 47... Kh7 {[%clk 0:00:04.6]} 48.
Qg6+ {[%clk 0:00:31.8]} 48... Kh8 {[%clk 0:00:04.6]} 49. Qxh6# {[%clk
0:00:32.4]} 1-0

[Event "Late-Titled-Tuesday-Blitz-September-05-2023"]
[Site "Chess.com"]
[Date "2023.09.05"]
[Round "1"]
[White "Sjakkerntobi"]
[Black "Matibar"]
[Result "0-1"]
[WhiteElo "2459"]
[BlackElo "2885"]
[TimeControl "180+1"]
[EndTime "14:07:30 PDT"]
[Termination "Matibar won by checkmate"]

1. e4 {[%clk 0:03:00.9]} 1... e6 {[%clk 0:02:58.9]} 2. d4 {[%clk 0:03:01]} 2...
d5 {[%clk 0:02:59.8]} 3. Nc3 {[%clk 0:03:01.8]} 3... dxe4 {[%clk 0:02:59.7]} 4.
Nxe4 {[%clk 0:03:02.4]} 4... Nd7 {[%clk 0:03:00.4]} 5. Nf3 {[%clk 0:03:01.9]}
5... Ngf6 {[%clk 0:03:00.4]} 6. Nxf6+ {[%clk 0:03:01.2]} 6... Nxf6 {[%clk
0:03:01.3]} 7. Be3 {[%clk 0:03:01.5]} 7... Bd6 {[%clk 0:02:59.5]} 8. Bd3 {[%clk
0:03:01.5]} 8... O-O {[%clk 0:02:58.6]} 9. Qe2 {[%clk 0:03:01.2]} 9... b6 {[%clk
0:02:59]} 10. O-O-O {[%clk 0:03:00.8]} 10... Bb7 {[%clk 0:02:59.4]} 11. Ne5
{[%clk 0:02:57.9]} 11... Nd5 {[%clk 0:02:52.3]} 12. Bd2 {[%clk 0:02:57.1]} 12...
Qh4 {[%clk 0:02:39]} 13. Qe4 {[%clk 0:02:46.5]} 13... Qxe4 {[%clk 0:02:32.6]}
14. Bxe4 {[%clk 0:02:47.4]} 14... f6 {[%clk 0:02:09]} 15. Nd3 {[%clk 0:02:41.7]}
15... Rab8 {[%clk 0:01:51.8]} 16. c4 {[%clk 0:02:37.9]} 16... Nb4 {[%clk
0:01:43.7]} 17. Nxb4 {[%clk 0:01:45.7]} 17... Bxe4 {[%clk 0:01:41.1]} 18. f3
{[%clk 0:01:46]} 18... Bb7 {[%clk 0:01:39]} 19. Rhe1 {[%clk 0:01:45.8]} 19...
Kf7 {[%clk 0:01:38.4]} 20. h3 {[%clk 0:01:40]} 20... Rbd8 {[%clk 0:01:30.9]} 21.
Bc3 {[%clk 0:01:36.3]} 21... h5 {[%clk 0:01:23.5]} 22. Nd3 {[%clk 0:01:36]}
22... g5 {[%clk 0:01:21.8]} 23. Bb4 {[%clk 0:01:27]} 23... Rg8 {[%clk
0:01:06.2]} 24. Bxd6 {[%clk 0:01:25]} 24... cxd6 {[%clk 0:01:05.6]} 25. b3
{[%clk 0:01:11.5]} 25... e5 {[%clk 0:01:05.5]} 26. d5 {[%clk 0:01:11.2]} 26...
g4 {[%clk 0:01:04.6]} 27. hxg4 {[%clk 0:01:05.3]} 27... hxg4 {[%clk 0:01:04.7]}
28. f4 {[%clk 0:01:06.1]} 28... Bc8 {[%clk 0:00:58.5]} 29. fxe5 {[%clk
0:01:03.6]} 29... fxe5 {[%clk 0:00:57.8]} 30. Rf1+ {[%clk 0:01:02.4]} 30... Kg6
{[%clk 0:00:58]} 31. Kd2 {[%clk 0:01:01.4]} 31... Bf5 {[%clk 0:00:57.6]} 32. Ke3
{[%clk 0:01:00.5]} 32... Rh8 {[%clk 0:00:57.2]} 33. Rh1 {[%clk 0:00:59.9]} 33...
Kg5 {[%clk 0:00:54.8]} 34. Nb4 {[%clk 0:00:57.5]} 34... a5 {[%clk 0:00:50.2]}
35. Nd3 {[%clk 0:00:54.7]} 35... g3 {[%clk 0:00:47.7]} 36. Nb2 {[%clk
0:00:43.4]} 36... Bg4 {[%clk 0:00:36]} 37. Rdf1 {[%clk 0:00:36.4]} 37... Rdf8
{[%clk 0:00:29.9]} 38. Rxh8 {[%clk 0:00:26.9]} 38... Rxf1 {[%clk 0:00:25.8]} 39.
Rg8+ {[%clk 0:00:26.9]} 39... Kh4 {[%clk 0:00:25.9]} 40. Na4 {[%clk 0:00:19]}
40... Rf2 {[%clk 0:00:20.3]} 41. Nc3 {[%clk 0:00:17.8]} 41... Rxg2 {[%clk
0:00:19.7]} 42. Ne4 {[%clk 0:00:17.3]} 42... Re2+ {[%clk 0:00:18.5]} 43. Kd3
{[%clk 0:00:18]} 43... g2 {[%clk 0:00:18]} 44. Rh8+ {[%clk 0:00:18.6]} 44... Bh5
{[%clk 0:00:18.2]} 45. Rg8 {[%clk 0:00:17.1]} 45... Rxa2 {[%clk 0:00:17.7]} 46.
Nxd6 {[%clk 0:00:14.9]} 46... Bg4 {[%clk 0:00:16.5]} 47. Rh8+ {[%clk 0:00:15.4]}
47... Kg3 {[%clk 0:00:16.8]} 48. Ne4+ {[%clk 0:00:15.9]} 48... Kf4 {[%clk
0:00:15.8]} 49. Rf8+ {[%clk 0:00:14.9]} 49... Bf5 {[%clk 0:00:16.2]} 50. Rg8
{[%clk 0:00:15.3]} 50... Bxe4+ {[%clk 0:00:16.1]} 51. Kc3 {[%clk 0:00:16.2]}
51... Rc2# {[%clk 0:00:15.9]} 0-1